bitfinex/quotes_ETHUSD_20251025
["timestamp","ask_amount","ask_price","bid_price","bid_amount"]
[1761427891308,0.01,3947.7,3947.5,0.1284]
[1761427891611,0.01,3947.7,3947.6,3.236]
[1761427893895,0.01,3947.7,3947.5,1.12300218]
[1761427894122,0.01,3947.7,3947.6,3.235]
[1761427894612,0.01,3947.8,3947.6,3.235]
[1761427895018,0.4634,3947.8,3947.6,3.235]
[1761427895925,0.4634,3947.8,3947.7,3.233]
[1761427905835,0.01,3947.8,3947.7,3.233]
[1761427906512,0.01,3947.9,3947.7,3.233]
[1761427906724,0.4745,3947.9,3947.7,3.233]
[1761427914952,0.4745,3947.9,3947.6,0.002]
[1761427914953,3.23159764,3947.8,3947.6,0.002]
[1761427915140,4.08832055,3947.7,3947.6,0.002]
[1761427915449,4.55282055,3947.7,3947.6,0.002]
[1761427918252,4.56282055,3947.7,3947.6,0.002]
[1761427924559,0.01,3947.7,3947.6,0.002]
[1761427924775,2.54312055,3947.7,3947.6,0.002]
[1761427924980,3.14212055,3947.7,3947.6,0.002]
[1761427926682,2.66952055,3947.7,3947.6,0.002]
[1761427926977,0.1364,3947.7,3947.6,0.002]
[1761427927179,0.01,3947.7,3947.6,0.002]
[1761427928264,0.4764,3947.7,3947.6,0.002]
[1761427928468,0.01,3947.7,3947.6,0.002]
[1761427929515,0.4764,3947.7,3947.6,0.002]
[1761427929682,0.01,3947.7,3947.6,0.002]
[1761427936111,0.1264,3947.9,3947.6,0.002]
[1761427936112,0.01,3947.8,3947.6,0.002]
[1761427937152,0.01,3947.8,3947.6,3.218]
[1761427956960,0.01,3947.8,3947.6,3.56815589]
[1761427957126,0.01,3947.8,3947.7,0.4429]
[1761427957946,0.01,3947.8,3947.7,0.5693]
[1761427958129,0.01,3947.8,3947.7,3.10242055]
[1761427958847,0.01,3948.3,3947.7,3.10242055]
[1761427959048,0.01,3948.3,3948.0,3.89163879]
[1761427959244,0.01,3948.3,3948.1,3.208]
[1761427959433,0.4669,3948.3,3948.1,3.208]
[1761427960450,0.01,3948.3,3948.1,3.208]
[1761427965887,0.01,3948.4,3948.1,3.208]
[1761427970161,0.4669,3948.4,3948.1,3.208]
[1761427970699,0.01,3948.4,3948.1,3.208]
[1761427975092,0.01,3948.4,3948.0,3.89163879]
[1761427975401,0.4569,3948.3,3948.1,3.204]
[1761427977694,0.01,3948.2,3948.1,3.204]
[1761427977896,0.01,3948.2,3948.1,3.93884388]
[1761427978676,0.01,3948.2,3948.1,3.204]
[1761427983730,0.01,3948.4,3948.1,3.204]
[1761427985710,0.4472,3948.4,3948.1,3.204]
[1761427986028,0.4472,3948.4,3948.1,3.206]
[1761427987296,0.01,3948.4,3948.1,3.206]
[1761427990619,0.4831,3948.4,3948.1,3.206]
[1761427995101,0.01,3948.4,3948.1,3.206]
[1761427998441,0.4831,3948.4,3948.1,3.206]
[1761427998642,0.4831,3948.4,3948.2,0.76011619]
[1761428001425,0.01,3948.3,3948.2,0.76011619]
[1761428007347,0.01,3948.4,3948.2,0.76011619]
[1761428007524,0.4831,3948.4,3948.2,0.76011619]
[1761428012858,0.01,3948.4,3948.2,0.76011619]
[1761428021732,0.0077,3948.4,3948.2,0.76011619]
[1761428025171,0.0077,3948.3,3948.2,0.76011619]
[1761428030981,2.9825356,3948.3,3948.1,0.002]
[1761428031196,2.53279975,3948.2,3948.1,0.002]
[1761428031484,2.97489975,3948.2,3948.1,0.002]
[1761428033714,2.98259975,3948.2,3948.1,0.002]
[1761428047811,2.54049975,3948.2,3948.1,0.002]
[1761428048032,2.99839975,3948.2,3948.1,0.002]
[1761428049364,2.54049975,3948.2,3948.1,0.002]
[1761428050237,2.99859975,3948.2,3948.1,0.002]
[1761428072512,2.5385639,3948.1,3948.0,0.10336552]
[1761428072685,2.6649639,3948.1,3948.0,0.10336552]
[1761428072885,3.1230639,3948.1,3948.0,0.10336552]
[1761428073716,6.3190639,3948.1,3948.0,0.10336552]
[1761428075791,6.3133639,3948.1,3948.0,0.10336552]
[1761428092230,6.3133639,3948.1,3948.0,0.10536552]
[1761428092539,6.3143639,3948.1,3948.0,0.10536552]
[1761428096841,6.44656579,3948.1,3948.0,0.10536552]
[1761428114361,5.98846579,3948.1,3948.0,0.10536552]
[1761428114839,6.45396579,3948.1,3948.0,0.10536552]
[1761428128995,5.98846579,3948.1,3948.0,0.10536552]
[1761428129198,6.45396579,3948.1,3948.0,0.10536552]
[1761428129498,5.98846579,3948.1,3948.0,0.10536552]
[1761428130903,6.45396579,3948.1,3948.0,0.10536552]
[1761428137006,0.001,3948.1,3948.0,0.42186552]
[1761428137175,0.001,3948.1,3948.0,3.47277752]
[1761428141934,0.001,3948.4,3948.3,2.5327356]
[1761428142095,0.001,3948.4,3948.3,8.84190951]
[1761428142294,0.001,3948.4,3948.3,10.96246026]
[1761428143235,0.001,3948.4,3948.3,11.0637829]
[1761428144430,0.001,3948.5,3948.4,4.59475146]
[1761428144750,0.001,3948.5,3948.4,4.93657817]
[1761428145159,0.001,3948.6,3948.5,4.59468731]
[1761428145444,0.001,3948.6,3948.5,6.84701538]
[1761428145848,0.001,3948.6,3948.5,6.94832724]
[1761428146214,0.001,3948.8,3948.7,2.53247904]
[1761428146414,0.001,3948.8,3948.7,10.47845295]
[1761428146750,0.001,3948.8,3948.7,12.35015295]
[1761428146947,0.001,3948.8,3948.7,14.56367827]
[1761428147616,0.001,3948.8,3948.7,15.07055827]
[1761428157122,0.01,3949.9,3948.8,4.59449491]
[1761428157458,0.01,3949.9,3949.6,2.53185784]
[1761428157624,0.01,3949.9,3949.8,7.40424767]
[1761428157825,0.01,3949.9,3949.8,7.53064767]
[1761428158027,0.01,3949.9,3949.8,7.84714767]
[1761428158438,0.01,3949.9,3949.8,8.60684617]
[1761428160558,0.011,3949.9,3949.8,8.60684617]
[1761428160863,0.011,3949.9,3949.8,10.06513515]
[1761428163340,0.011,3949.9,3949.8,9.74863515]
[1761428163871,0.6933,3949.9,3949.8,0.7596985]
[1761428168995,0.011,3949.9,3949.8,3.29147226]
[1761428172502,0.011,3949.9,3949.8,3.60797226]
[1761428173964,0.011,3949.9,3949.8,3.73437226]
[1761428174372,0.011,3949.9,3949.8,3.41787226]
[1761428174594,0.011,3949.9,3949.8,5.12364677]
[1761428177079,0.011,3949.9,3949.8,7.05932677]
[1761428177290,0.011,3949.9,3949.8,7.18572677]
[1761428177491,0.011,3949.9,3949.8,6.36234677]
[1761428179078,0.011,3949.9,3949.8,5.60264827]
[1761428183774,0.011,3949.9,3949.8,5.91914827]
[1761428188095,0.011,3949.9,3949.8,5.60264827]
[1761428189202,0.011,3949.9,3949.8,5.91914827]
[1761428189400,0.011,3949.9,3949.8,5.60264827]
[1761428190029,0.011,3949.9,3949.8,5.91914827]
[1761428190234,0.011,3949.9,3949.8,5.60264827]
[1761428190403,0.011,3949.9,3949.8,5.91914827]
[1761428198646,0.011,3949.9,3949.8,5.60264827]
[1761428201360,0.011,3949.9,3949.8,5.91914827]
[1761428202138,0.011,3949.9,3949.8,5.60264827]
[1761428202351,0.011,3949.9,3949.8,6.10952827]
[1761428203448,0.011,3949.9,3949.8,6.42602827]
[1761428206568,0.011,3949.9,3949.8,6.10952827]
[1761428206746,0.011,3949.9,3949.8,6.42602827]
[1761428207594,0.011,3949.9,3949.8,6.10952827]
[1761428208270,0.011,3949.9,3949.8,6.42602827]
[1761428216747,0.011,3949.9,3949.8,6.10952827]
[1761428218490,0.011,3949.9,3949.8,6.42602827]
[1761428222081,0.011,3949.9,3949.8,6.10952827]
[1761428239902,0.011,3949.9,3949.8,6.55682827]
[1761428240686,0.011,3949.9,3949.8,11.3026978]
[1761428242719,0.6867,3949.9,3949.8,6.55682827]
[1761428243383,0.6867,3949.9,3949.8,11.3026978]
[1761428245422,0.011,3949.9,3949.8,11.3026978]
[1761428246212,0.4573,3949.9,3949.8,11.3026978]
[1761428249339,0.011,3949.9,3949.8,11.3026978]
[1761428249631,0.6867,3949.9,3949.8,11.3026978]
[1761428257356,0.011,3949.9,3949.8,11.3026978]
[1761428258242,0.4585,3949.9,3949.8,11.3026978]
[1761428261247,0.011,3949.9,3949.8,11.3026978]
[1761428265068,0.4585,3949.9,3949.8,11.3026978]
[1761428265583,0.011,3949.9,3949.8,11.3026978]
[1761428271308,0.4585,3949.9,3949.8,11.3026978]
[1761428272009,0.6767,3949.9,3949.8,11.3026978]
[1761428276120,0.011,3949.9,3949.8,11.3026978]
[1761428279214,0.4585,3949.9,3949.8,11.3026978]
[1761428279512,0.6767,3949.9,3949.8,4.66067376]
[1761428280494,0.6767,3949.9,3949.8,3.10547376]
[1761428280697,0.6767,3949.9,3949.8,0.1264]
[1761428281032,0.6767,3949.9,3949.0,2.2812799]
[1761428281033,0.6767,3949.9,3949.6,0.1264]
[1761428281236,0.4702,3949.8,3949.6,0.1264]
[1761428285355,0.4702,3949.8,3949.7,2.53183786]
[1761428296891,0.4712,3949.8,3949.7,2.53183786]
[1761428311198,0.001,3949.8,3949.7,2.53183786]
[1761428312219,0.4544,3949.8,3949.7,2.53183786]
[1761428314529,0.001,3949.8,3949.7,2.53183786]
[1761428315541,0.001,3949.8,3949.7,2.55715623]
[1761428315840,0.001,3949.8,3949.7,3.75808468]
[1761428316136,0.001,3949.8,3949.7,4.21148468]
[1761428350231,0.4706,3949.8,3949.7,4.21148468]
[1761428350532,0.001,3949.8,3949.7,4.21148468]
[1761428360774,0.001,3949.8,3949.7,8.95785212]
[1761428367678,0.4706,3949.8,3949.7,8.95785212]
[1761428368781,0.001,3949.8,3949.7,8.95785212]
[1761428373381,0.001,3949.8,3949.7,9.59113212]
[1761428422768,0.001,3949.8,3949.7,8.73045758]
[1761428443795,0.001,3949.8,3949.7,4.84476468]
[1761428452271,0.001,3949.8,3949.7,11.90845758]
[1761428452272,0.6707,3949.8,3949.7,11.90845758]
[1761428456579,0.6707,3949.8,3949.7,8.73045758]
[1761428456775,0.6707,3949.8,3949.7,11.90845758]
[1761428457506,0.6707,3949.8,3949.7,8.73045758]
[1761428457804,0.6707,3949.8,3949.7,8.02276468]
[1761428458407,0.6707,3949.8,3949.7,11.90845758]
[1761428466255,0.6707,3949.8,3949.7,10.68221076]
[1761428468723,0.451,3949.8,3949.7,10.68221076]
[1761428472395,0.001,3949.8,3949.7,10.68221076]
[1761428472733,0.4564,3951.2,3950.6,2.53126094]
[1761428472901,0.4564,3951.1,3950.6,2.53126094]
[1761428473242,0.9128,3951.1,3950.6,2.53126094]
[1761428473624,0.4564,3951.0,3950.6,2.53126094]
[1761428482663,0.5838,3951.0,3950.6,2.53126094]
[1761428483131,0.4564,3950.9,3950.6,2.53126094]
[1761428483331,0.4564,3950.9,3950.4,6.59536098]
[1761428484869,0.4564,3950.9,3950.5,2.53131805]
[1761428491376,0.4564,3950.9,3950.4,3.3044]
[1761428491557,0.4564,3950.9,3950.1,0.01]
[1761428491558,0.4564,3950.9,3950.3,2.5314452]
[1761428491752,0.1264,3950.7,3950.3,2.5314452]
[1761428492255,0.4564,3950.6,3950.3,2.5314452]
[1761428493776,0.4564,3950.6,3950.1,0.01]
[1761428493979,0.1264,3950.5,3950.1,0.01]
[1761428494183,0.88608503,3950.5,3950.1,0.01]
[1761428494377,0.4564,3950.4,3950.1,0.01]
[1761428497484,0.1264,3950.3,3950.1,0.01]
[1761428497788,0.88615429,3950.3,3950.1,0.01]
[1761428497987,0.4564,3950.2,3950.1,0.01]
[1761428499658,0.4564,3950.2,3950.1,0.012]
[1761428507002,1.21615429,3950.2,3950.1,0.012]
[1761428516902,4.39315429,3950.2,3950.1,0.012]
[1761428518785,6.92467168,3950.2,3950.1,0.012]
[1761428521416,6.92467168,3950.2,3949.7,0.002]
[1761428521417,2.53177376,3949.8,3949.7,0.002]
[1761428521622,5.83517376,3949.8,3949.7,0.002]
[1761428521824,6.26907376,3949.8,3949.7,0.002]
[1761428522319,6.37039357,3949.8,3949.7,0.002]
[1761428526524,6.26907376,3949.8,3949.7,0.002]
[1761428541460,6.26377376,3949.8,3949.7,0.002]
[1761428551573,7.81897376,3949.8,3949.7,0.002]
[1761428559399,7.39037376,3949.8,3949.7,0.002]
[1761428559566,7.84947376,3949.8,3949.7,0.002]
[1761428559771,2.53183786,3949.7,3949.6,0.002]
[1761428559971,2.99093786,3949.7,3949.6,0.002]
[1761428560468,7.39037376,3949.8,3949.0,0.002]
[1761428560469,2.53203018,3949.4,3949.0,0.002]
[1761428560677,3.176,3949.3,3949.0,0.002]
[1761428560862,2.65862253,3949.1,3949.0,0.002]
[1761428562392,3.11772253,3949.1,3949.0,0.002]
[1761428562690,2.99132253,3949.1,3949.0,0.002]
[1761428566490,2.53247684,3948.8,3948.6,0.002]
[1761428566684,3.176,3948.7,3948.6,0.002]
[1761428566883,5.70847904,3948.7,3948.6,0.002]
[1761428572484,5.83487904,3948.7,3948.6,0.4313]
[1761428572888,5.83487904,3948.7,3948.6,0.002]
[1761428585548,6.27087904,3948.7,3948.6,0.002]
[1761428586614,5.83487904,3948.7,3948.6,0.002]
[1761428616596,6.27197904,3948.7,3948.6,0.002]
[1761428617882,5.83487904,3948.7,3948.6,0.002]
[1761428627817,3.3014,3948.7,3948.6,0.4378]
[1761428630720,0.1264,3948.7,3948.6,0.002]
[1761428630908,0.1264,3948.7,3948.6,0.4378]
[1761428631079,0.1264,3948.7,3948.6,0.5642]
[1761428633619,0.001,3948.9,3948.6,3.09673051]
[1761428633840,0.001,3948.9,3948.6,1.66657675]
[1761428634021,0.001,3948.9,3948.7,0.4358]
[1761428634317,0.001,3948.9,3948.7,0.5622]
[1761428634518,0.001,3948.9,3948.7,0.4358]
[1761428634854,0.001,3948.9,3948.8,1.19581606]
[1761428640318,0.001,3948.9,3948.8,1.67909416]
[1761428640835,0.001,3948.9,3948.8,1.19581606]
[1761428642232,0.001,3948.9,3948.8,0.76001606]
[1761428642801,0.001,3948.9,3948.8,1.19051606]
[1761428643934,0.001,3948.9,3948.8,0.76001606]
[1761428644141,0.001,3948.9,3948.8,1.19051606]
[1761428644343,0.001,3948.9,3948.8,1.13251936]
[1761428645019,0.001,3948.9,3948.8,1.56301936]
[1761428645842,0.001,3948.9,3948.8,1.13251936]
[1761428646540,0.001,3948.9,3948.8,1.56301936]
[1761428650444,0.001,3948.9,3948.8,1.13251936]
[1761428650942,0.001,3948.9,3948.8,4.13363427]
[1761428651521,0.001,3948.9,3948.8,4.11458714]
[1761428658066,0.001,3948.9,3948.8,4.11658714]
[1761428658266,0.001,3948.9,3948.8,4.62346714]
[1761428658765,0.001,3948.9,3948.8,9.37550409]
[1761428660968,0.001,3948.9,3948.8,9.50190409]
[1761428664039,0.001,3948.9,3948.8,4.74986714]
[1761428664238,0.001,3948.9,3948.8,3.77428714]
[1761428668671,0.001,3948.9,3948.8,7.66268703]
[1761428668877,0.001,3948.9,3948.8,4.75776882]
[1761428669094,0.001,3948.9,3948.8,3.40178384]
[1761428669240,0.4634,3948.9,3948.8,3.40178384]
[1761428669870,0.001,3948.9,3948.8,3.40178384]
[1761428671082,0.001,3948.9,3948.8,0.86936893]
[1761428672572,0.4634,3948.9,3948.8,0.86936893]
[1761428673375,0.001,3948.9,3948.8,0.86936893]
[1761428676599,0.4634,3948.9,3948.8,0.86936893]
[1761428676904,0.4634,3948.9,3948.8,0.74296893]
[1761428676905,0.6953,3948.9,3948.8,0.74296893]
[1761428679806,3.22765078,3948.9,3948.8,0.74296893]
[1761428679959,3.22765078,3948.9,3948.8,0.002]
[1761428696314,6.40265078,3948.9,3948.8,0.002]
[1761428701920,5.94175078,3948.9,3948.8,0.002]
[1761428702118,3.176,3948.9,3948.8,0.002]
[1761428702444,5.93975078,3948.9,3948.8,0.002]
[1761428702620,6.40265078,3948.9,3948.8,0.002]
[1761428712815,5.70835078,3948.9,3948.8,0.002]
[1761428724752,6.13765078,3948.9,3948.8,0.002]
[1761428724977,6.35545078,3948.9,3948.8,0.002]
[1761428726249,5.92615078,3948.9,3948.8,0.002]
[1761428726648,5.70835078,3948.9,3948.8,0.002]
[1761428732981,2.53335078,3948.9,3948.8,0.002]
[1761428733150,5.70735078,3948.9,3948.8,0.002]
[1761428760235,2.53335078,3948.9,3948.8,0.002]
[1761428760436,5.70735078,3948.9,3948.8,0.002]
[1761428776237,7.49415078,3948.9,3948.8,0.002]
[1761428776433,7.49415078,3948.9,3948.2,0.002]
[1761428776434,0.50688,3948.5,3948.2,0.002]
[1761428776769,4.0880639,3948.1,3947.8,0.002]
[1761428776930,7.80898094,3948.1,3947.8,0.002]
[1761428777135,8.25138094,3948.1,3947.8,0.002]
[1761428777336,8.35277729,3948.1,3947.8,0.002]
[1761428777870,9.03483408,3948.1,3947.8,0.002]
[1761428778234,8.35277729,3948.1,3947.8,0.002]
[1761428778583,3.27147222,3947.9,3947.8,1e-08]
[1761428778861,10.80738838,3947.9,3947.8,1e-08]
[1761428779175,10.56773159,3947.9,3947.8,1e-08]
[1761428779481,3.04000055,3947.7,3947.6,1e-08]
[1761428779646,8.31711759,3947.7,3947.6,1e-08]
[1761428779851,8.75951759,3947.7,3947.6,1e-08]
[1761428786651,8.88591759,3947.7,3947.6,1e-08]
[1761428786868,8.98733708,3947.7,3947.6,1e-08]
[1761428791984,8.98833708,3947.7,3947.6,1e-08]
[1761428792689,12.88405924,3947.7,3947.6,1e-08]
[1761428794287,3.04019306,3947.4,3946.8,0.002]
[1761428794587,11.66711522,3947.4,3946.8,0.002]
[1761428794763,12.23591522,3947.4,3946.8,0.002]
[1761428794964,12.33734062,3947.4,3946.8,0.002]
[1761428796188,8.71894062,3947.4,3946.8,0.002]
[1761428796356,7.39091306,3947.4,3946.8,0.4668]
[1761428796788,4.21491306,3947.4,3947.1,0.2409]
[1761428797058,4.21491306,3947.4,3947.1,0.7057]
[1761428797459,7.39191306,3947.4,3947.1,0.7057]
[1761428803496,7.39191306,3947.4,3947.1,0.012]
[1761428803798,7.84011306,3947.4,3947.1,0.012]
[1761428804180,8.3844805,3947.4,3947.1,0.012]
[1761428805811,8.3844805,3947.4,3947.2,1e-08]
[1761428805812,5.04365724,3947.3,3947.2,1e-08]
[1761428806014,10.39527821,3947.3,3947.2,1e-08]
[1761428806192,10.8464696,3947.3,3947.2,1e-08]
[1761428806812,10.97874481,3947.3,3947.2,1e-08]
[1761428814891,11.08017098,3947.3,3947.2,1e-08]
[1761428818320,9.71744822,3947.3,3947.2,1e-08]
[1761428819237,9.71901824,3947.3,3947.2,1e-08]
[1761428824702,4.59564979,3947.0,3946.8,0.002]
[1761428824926,8.44598725,3947.0,3946.8,0.002]
[1761428825122,8.89528725,3947.0,3946.8,0.002]
[1761428825607,12.79100941,3947.0,3946.8,0.002]
[1761428826639,12.91608324,3947.0,3946.8,0.002]
[1761428830713,12.34170941,3947.0,3946.8,0.002]
[1761428831730,12.46577827,3947.0,3946.8,0.002]
[1761428833141,13.3755315,3947.0,3946.8,0.002]
[1761428835251,12.90117827,3947.0,3946.8,0.002]
[1761428841832,13.00261422,3947.0,3946.8,0.002]
[1761428846487,12.56721422,3947.0,3946.8,0.002]
[1761428846643,12.56721422,3947.0,3946.4,0.002]
[1761428846644,8.49169294,3946.5,3946.4,0.002]
[1761428846840,9.0376304,3946.5,3946.4,0.002]
[1761428847040,12.2206304,3946.5,3946.4,0.002]
[1761428847260,12.80073114,3946.5,3946.4,0.002]
[1761428848142,14.16661206,3946.5,3946.4,0.4498]
[1761428848641,14.16661206,3946.5,3946.4,0.002]
[1761428849046,9.61773114,3946.5,3946.4,0.002]
[1761428849476,12.80073114,3946.5,3946.4,0.002]
[1761428849859,12.80073114,3946.5,3946.4,0.4498]
[1761428850252,12.80073114,3946.5,3946.4,0.002]
[1761428850764,9.11085114,3946.5,3946.4,0.4498]
[1761428850964,11.84605114,3946.5,3946.4,0.4498]
[1761428851187,12.75603661,3946.5,3946.4,0.4498]
[1761428852784,8.86031445,3946.5,3946.4,0.4498]
[1761428856590,8.98671445,3946.5,3946.4,0.4498]
[1761428863270,5.80471445,3946.5,3946.4,0.4498]
[1761428863478,8.98571445,3946.5,3946.4,0.4498]
[1761428868480,8.07572898,3946.5,3946.4,0.4498]
[1761428868681,8.07572898,3946.5,3946.4,0.002]
[1761428872693,8.07472898,3946.5,3946.4,0.002]
[1761428875398,9.8693099,3946.5,3946.4,0.002]
[1761428877183,8.07472898,3946.5,3946.4,0.002]
[1761428877488,9.4406099,3946.5,3946.4,0.002]
[1761428892216,8.07472898,3946.5,3946.4,0.002]
[1761428892439,9.4425599,3946.5,3946.4,0.002]
[1761428893843,8.07472898,3946.5,3946.4,0.002]
[1761428894048,8.50342898,3946.5,3946.4,0.002]
[1761428894554,8.60486647,3946.5,3946.4,0.002]
[1761428895446,8.60486647,3946.5,3946.0,0.002]
[1761428895447,4.59622763,3946.1,3946.0,1e-08]
[1761428895616,8.32016509,3946.1,3946.0,1e-08]
[1761428895817,5.14216509,3946.1,3946.0,1e-08]
[1761428896145,8.45246281,3946.1,3946.0,1e-08]
[1761428901158,5.27446281,3946.1,3946.0,1e-08]
[1761428901342,9.36342727,3946.1,3946.0,1e-08]
[1761428901743,6.18542727,3946.1,3946.0,1e-08]
[1761428901937,9.36342727,3946.1,3946.0,1e-08]
[1761428902251,9.80642727,3946.1,3946.0,1e-08]
[1761428902752,10.23512727,3946.1,3946.0,1e-08]
[1761428902957,7.05712727,3946.1,3946.0,1e-08]
[1761428903143,9.80642727,3946.1,3946.0,1e-08]
[1761428903344,9.32416281,3946.1,3946.0,1e-08]
[1761428903654,10.69154305,3946.1,3946.0,1e-08]
[1761428905462,10.81794305,3946.1,3946.0,1e-08]
[1761428906241,10.38924305,3946.1,3946.0,1e-08]
[1761428906441,9.02186281,3946.1,3946.0,1e-08]
[1761428907733,10.26284305,3946.1,3946.0,1e-08]
[1761428907937,10.69154305,3946.1,3946.0,1e-08]
[1761428912367,10.69154305,3946.1,3945.6,0.002]
[1761428912368,2.53440454,3945.7,3945.6,0.002]
[1761428912565,12.57367139,3945.7,3945.6,0.002]
[1761428912738,12.15951232,3945.7,3945.6,0.002]
[1761428912941,14.82451232,3945.7,3945.6,0.002]
[1761428913139,12.60051232,3945.7,3945.6,0.002]
[1761428913340,13.9644729,3945.7,3945.6,0.002]
[1761428915567,13.9644729,3945.7,3944.6,0.441]
[1761428915568,2.53504702,3944.7,3944.6,0.441]
[1761428915771,7.81618448,3944.7,3944.6,0.441]
[1761428917749,7.94258448,3944.7,3944.6,0.441]
[1761428918252,2.53536838,3944.2,3944.1,0.4903]
[1761428918460,5.84276838,3944.2,3944.1,0.02]
[1761428919184,5.84276838,3944.2,3944.1,0.4903]
[1761428922351,7.39796838,3944.2,3944.1,0.4903]
[1761428922659,11.1715387,3944.2,3944.1,0.02]
[1761428922877,11.71651051,3944.2,3944.1,0.02]
[1761428926489,11.84885856,3944.2,3944.1,0.02]
[1761428927189,8.41918824,3944.2,3944.1,0.7082]
[1761428927357,7.40391643,3944.2,3944.1,0.7082]
[1761428927553,4.22291643,3944.2,3944.1,0.7082]
[1761428927827,7.27256838,3944.2,3944.1,0.7082]
[1761428931514,4.09056838,3944.2,3944.1,0.7082]
[1761428931713,7.27256838,3944.2,3944.1,0.7082]
[1761428932717,7.39896838,3944.2,3944.1,0.7082]
[1761428933216,7.39896838,3944.2,3944.1,0.7102]
[1761428936315,4.09056838,3944.2,3944.1,0.7102]
[1761428936514,7.39896838,3944.2,3944.1,0.7102]
[1761428937629,1.6816,3944.2,3944.1,0.7102]
[1761428937805,4.8656,3944.2,3944.1,0.7102]
[1761428940822,7.40096838,3944.2,3944.1,0.7102]
[1761428945135,0.1264,3944.2,3944.1,0.7102]
[1761428945334,0.1264,3944.2,3944.1,0.85732012]
[1761428946712,0.1264,3944.2,3944.1,0.7102]
[1761428952943,3.3084,3944.2,3944.1,0.7102]
[1761428974892,0.1264,3944.2,3944.1,0.7102]
[1761428985813,2.66176838,3944.2,3944.1,0.7102]
[1761428992028,2.66176838,3944.2,3944.1,0.2399]
[1761428993029,0.1264,3944.2,3944.1,0.2399]
[1761428994330,0.1264,3944.2,3944.1,0.6839]
[1761428994524,0.1264,3944.2,3944.1,0.2399]
[1761428994729,2.66176838,3944.2,3944.1,0.2399]
[1761428995703,0.1264,3944.2,3944.1,0.2399]
[1761428996798,0.1264,3944.2,3944.1,0.022]
[1761428996799,2.66176838,3944.2,3944.1,0.022]
[1761428998810,5.84076838,3944.2,3944.1,0.022]
[1761428999317,6.29156838,3944.2,3944.1,0.022]
[1761429000216,3.7562,3944.2,3944.1,0.022]
[1761429000423,6.29156838,3944.2,3944.1,0.022]
[1761429003946,0.5772,3944.2,3944.1,0.022]
[1761429004157,3.3054,3944.2,3944.1,0.022]
[1761429004654,3.7632,3944.2,3944.1,0.022]
[1761429005428,0.5842,3944.2,3944.1,0.022]
[1761429005627,3.7632,3944.2,3944.1,0.022]
[1761429008251,6.29856838,3944.2,3944.1,0.022]
[1761429008453,3.3054,3944.2,3944.1,0.6856]
[1761429008828,3.3054,3944.2,3944.1,0.2399]
[1761429009029,3.3054,3944.2,3944.1,0.022]
[1761429011613,3.7342,3944.2,3944.1,0.022]
[1761429012116,3.3054,3944.2,3944.1,0.022]
[1761429014859,5.84076838,3944.2,3944.1,0.022]
[1761429015556,6.26956838,3944.2,3944.1,0.022]
[1761429016354,2.66176838,3944.2,3944.1,0.022]
[1761429016654,3.3054,3944.2,3944.1,0.6856]
[1761429016854,3.3054,3944.2,3944.1,0.022]
[1761429017459,3.7342,3944.2,3944.1,0.022]
[1761429018158,3.3054,3944.2,3944.1,0.022]
[1761429031754,3.7342,3944.2,3944.1,0.022]
[1761429032286,3.3054,3944.2,3944.1,0.022]
[1761429042269,3.179,3944.2,3944.1,0.022]
[1761429043896,0.1264,3944.3,3944.1,0.022]
[1761429044101,3.179,3944.2,3944.1,0.022]
[1761429046503,0.578,3944.3,3944.1,0.022]
[1761429046811,3.179,3944.2,3944.1,0.022]
[1761429048307,0.578,3944.3,3944.1,0.022]
[1761429048477,3.179,3944.2,3944.1,0.022]
[1761429063742,3.3044,3944.3,3944.1,0.2399]
[1761429063946,0.1264,3944.3,3944.1,0.7111]
[1761429064243,0.1264,3944.4,3944.2,0.4712]
[1761429065544,3.178,3944.5,3944.2,0.4712]
[1761429065744,3.178,3944.5,3944.2,1.23210664]
[1761429066117,3.178,3944.5,3944.3,0.4712]
[1761429067478,3.3044,3944.6,3944.3,0.4712]
[1761429068046,0.1264,3944.6,3944.3,0.4712]
[1761429070166,1.6816,3944.6,3944.3,0.4712]
[1761429072477,1.6816,3944.6,3944.3,0.4732]
[1761429072678,0.1264,3944.6,3944.3,0.4732]
[1761429074788,1.6816,3944.6,3944.3,0.4732]
[1761429076103,0.1264,3944.6,3944.3,0.4732]
[1761429077608,1.6816,3944.6,3944.3,0.4732]
[1761429079807,0.1264,3944.6,3944.3,0.4732]
[1761429081005,0.1264,3944.6,3944.3,0.002]
[1761429081203,5.71322382,3944.5,3944.3,0.002]
[1761429081375,6.15152382,3944.5,3944.3,0.002]
[1761429083773,2.97352382,3944.5,3944.3,0.002]
[1761429084095,3.6163,3944.4,3944.3,0.002]
[1761429088508,3.178,3944.4,3944.3,0.002]
[1761429088891,3.178,3944.4,3944.3,0.1504]
[1761429097118,3.6163,3944.4,3944.3,0.1504]
[1761429097715,3.178,3944.4,3944.3,0.1504]
[1761429106457,3.178,3944.4,3944.3,0.5938]
[1761429106754,3.178,3944.4,3944.3,0.1504]
[1761429108360,3.178,3944.4,3944.3,0.5938]
[1761429108725,3.178,3944.4,3944.3,0.1504]
[1761429111631,3.178,3944.4,3944.3,0.5938]
[1761429113328,3.178,3944.4,3944.3,0.1504]
[1761429114452,3.178,3944.4,3944.3,0.002]
[1761429114957,2.6615135,3944.6,3944.3,0.002]
[1761429115142,3.1148135,3944.6,3944.3,0.002]
[1761429119065,2.6615135,3944.6,3944.3,0.002]